bitfinex/quotes_BTCUSD_20251015
["timestamp","ask_amount","ask_price","bid_price","bid_amount"]
[1760568222489,2.97440006,111390.0,111380.0,0.00108538]
[1760568222951,2.86172006,111390.0,111380.0,0.00108538]
[1760568223162,2.97440006,111390.0,111380.0,0.00108538]
[1760568223607,2.97440609,111390.0,111380.0,0.00108538]
[1760568224656,2.77507309,111390.0,111380.0,0.00108538]
[1760568227079,2.66239309,111390.0,111380.0,0.00108538]
[1760568227945,2.77507309,111390.0,111380.0,0.00108538]
[1760568228414,3.04596048,111390.0,111380.0,0.00108538]
[1760568228683,3.15864048,111390.0,111380.0,0.00108538]
[1760568228902,3.15864682,111390.0,111380.0,0.00108538]
[1760568229325,3.04596682,111390.0,111380.0,0.00108538]
[1760568229549,3.15864682,111390.0,111380.0,0.00108538]
[1760568230783,3.04596682,111390.0,111380.0,0.00108538]
[1760568231038,3.15864682,111390.0,111380.0,0.00108538]
[1760568231425,3.04596682,111390.0,111380.0,0.00108538]
[1760568231633,3.15864682,111390.0,111380.0,0.00108538]
[1760568232167,2.66239943,111390.0,111380.0,0.00108538]
[1760568232394,2.77507943,111390.0,111380.0,0.00108538]
[1760568232592,2.66239943,111390.0,111380.0,0.00108538]
[1760568233000,2.77507943,111390.0,111380.0,0.00108538]
[1760568233501,3.15864682,111390.0,111380.0,0.00108538]
[1760568234427,3.15870402,111390.0,111380.0,0.00108538]
[1760568235663,3.15864682,111390.0,111380.0,0.00102818]
[1760568235921,3.04596682,111390.0,111380.0,0.00102818]
[1760568236126,3.04599657,111390.0,111380.0,0.00102818]
[1760568236356,3.15867657,111390.0,111380.0,0.00102818]
[1760568237110,3.04599657,111390.0,111380.0,0.00102818]
[1760568237865,3.15867657,111390.0,111380.0,0.00102818]
[1760568238180,3.04599657,111390.0,111380.0,0.00102818]
[1760568238381,3.15867657,111390.0,111380.0,0.00102818]
[1760568239082,3.04599657,111390.0,111380.0,0.00102818]
[1760568239314,3.15867657,111390.0,111380.0,0.00102818]
[1760568240169,3.04599802,111390.0,111380.0,0.00102818]
[1760568240375,3.15867802,111390.0,111380.0,0.00102818]
[1760568240768,3.04599802,111390.0,111380.0,0.00102818]
[1760568241136,3.15867802,111390.0,111380.0,0.00102818]
[1760568241468,3.04599802,111390.0,111380.0,0.00102818]
[1760568241919,3.15867802,111390.0,111380.0,0.00102818]
[1760568242470,3.04599802,111390.0,111380.0,0.00102818]
[1760568242895,3.15867802,111390.0,111380.0,0.00102818]
[1760568243366,3.04599802,111390.0,111380.0,0.00102818]
[1760568243793,3.15867802,111390.0,111380.0,0.00102818]
[1760568243994,3.04599802,111390.0,111380.0,0.00102818]
[1760568244197,3.15867802,111390.0,111380.0,0.00102818]
[1760568244445,3.04599802,111390.0,111380.0,0.00102818]
[1760568244894,3.15867939,111390.0,111380.0,0.00102818]
[1760568247189,3.13342144,111390.0,111380.0,0.00102818]
[1760568247396,3.1586921,111390.0,111380.0,0.00102818]
[1760568247754,3.04601211,111390.0,111380.0,0.00102818]
[1760568248035,3.15869211,111390.0,111380.0,0.00102818]
[1760568248241,2.66244472,111390.0,111380.0,0.00102818]
[1760568249185,2.77512472,111390.0,111380.0,0.00102818]
[1760568250261,2.66244472,111390.0,111380.0,0.00102818]
[1760568250461,2.77512472,111390.0,111380.0,0.00102818]
[1760568250867,2.66244472,111390.0,111380.0,0.00102818]
[1760568251077,2.77512472,111390.0,111380.0,0.00102818]
[1760568251455,2.66244472,111390.0,111380.0,0.00102818]
[1760568251633,2.77512472,111390.0,111380.0,0.00102818]
[1760568252414,2.775124,111390.0,111380.0,0.00102818]
[1760568253033,2.662444,111390.0,111380.0,0.00102818]
[1760568253391,2.775124,111390.0,111380.0,0.00102818]
[1760568255002,2.662444,111390.0,111380.0,0.00102818]
[1760568255207,2.775124,111390.0,111380.0,0.00102818]
[1760568257423,2.662444,111390.0,111380.0,0.00102818]
[1760568257739,2.775124,111390.0,111380.0,0.00102818]
[1760568259425,2.662444,111390.0,111380.0,0.00102818]
[1760568259656,2.775124,111390.0,111380.0,0.00102818]
[1760568259847,2.662444,111390.0,111380.0,0.00102818]
[1760568260525,2.775124,111390.0,111380.0,0.00102818]
[1760568260729,2.662444,111390.0,111380.0,0.00102818]
[1760568260940,2.775124,111390.0,111380.0,0.00102818]
[1760568261169,2.662444,111390.0,111380.0,0.00102818]
[1760568261372,2.775124,111390.0,111380.0,0.00102818]
[1760568261892,3.15869139,111390.0,111380.0,0.00102818]
[1760568262489,3.15869116,111390.0,111380.0,0.00102818]
[1760568264029,3.13185623,111390.0,111380.0,0.00102818]
[1760568268689,3.13185667,111390.0,111380.0,0.00102818]
[1760568270244,3.13199701,111390.0,111380.0,0.00102818]
[1760568271696,3.40295457,111390.0,111380.0,0.00102818]
[1760568271852,0.17961383,111350.0,111330.0,0.25139124]
[1760568272143,0.56325139,111350.0,111340.0,0.17962996]
[1760568272366,0.56325139,111350.0,111340.0,0.181974]
[1760568272621,0.56325139,111350.0,111340.0,0.00234404]
[1760568273218,0.56325139,111350.0,111340.0,0.181974]
[1760568273480,0.56325139,111350.0,111340.0,0.182974]
[1760568273725,0.56325139,111350.0,111340.0,0.00334404]
[1760568273963,0.590297,111350.0,111340.0,0.183974]
[1760568274186,0.702977,111350.0,111340.0,0.183974]
[1760568274405,0.702977,111350.0,111340.0,0.182974]
[1760568274614,0.590297,111350.0,111340.0,0.181974]
[1760568274735,0.702977,111350.0,111340.0,0.181974]
[1760568276347,0.590297,111350.0,111340.0,0.181974]
[1760568276595,0.702977,111350.0,111340.0,0.181974]
[1760568277870,0.590297,111350.0,111340.0,0.181974]
[1760568278078,0.702977,111350.0,111340.0,0.181974]
[1760568278572,0.702977,111350.0,111340.0,0.00234404]
[1760568279028,0.702977,111350.0,111340.0,0.181974]
[1760568279606,0.590297,111350.0,111340.0,0.181974]
[1760568279811,0.702977,111350.0,111340.0,0.181974]
[1760568284266,0.52336317,111350.0,111340.0,0.181974]
[1760568284481,0.702977,111350.0,111340.0,0.181974]
[1760568285118,0.590297,111350.0,111340.0,0.181974]
[1760568285327,0.41068317,111350.0,111340.0,0.181974]
[1760568285547,0.52336317,111350.0,111340.0,0.181974]
[1760568285912,0.41068317,111350.0,111340.0,0.181974]
[1760568286156,0.702977,111350.0,111340.0,0.181974]
[1760568289558,0.590297,111350.0,111340.0,0.00234404]
[1760568289796,0.702977,111350.0,111340.0,0.181974]
[1760568291376,0.590297,111350.0,111340.0,0.181974]
[1760568291628,0.702977,111350.0,111340.0,0.181974]
[1760568292094,0.4548553,111350.0,111340.0,0.181974]
[1760568294453,0.48091275,111350.0,111340.0,0.181974]
[1760568295252,0.36823275,111350.0,111340.0,0.181974]
[1760568295451,0.48091275,111350.0,111340.0,0.181974]
[1760568295923,0.36823275,111350.0,111340.0,0.181974]
[1760568296129,0.48091275,111350.0,111340.0,0.181974]
[1760568296551,0.48091275,111350.0,111340.0,0.00234404]
[1760568296755,0.48091275,111350.0,111340.0,0.181974]
[1760568297039,0.36823275,111350.0,111340.0,0.00234404]
[1760568297248,0.48091275,111350.0,111340.0,0.181974]
[1760568298541,0.48091275,111350.0,111340.0,0.00234404]
[1760568299962,0.48091275,111350.0,111340.0,0.181974]
[1760568300448,0.48091275,111350.0,111340.0,0.00234404]
[1760568301684,0.48091275,111350.0,111340.0,0.181974]
[1760568301888,0.48091275,111350.0,111340.0,0.00234404]
[1760568302445,0.48091275,111350.0,111340.0,0.181974]
[1760568303676,0.31835128,111350.0,111340.0,0.181974]
[1760568303897,0.70198884,111350.0,111340.0,0.181974]
[1760568306280,0.70198884,111350.0,111340.0,0.00234404]
[1760568306493,0.70198884,111350.0,111340.0,0.181974]
[1760568307377,0.64657307,111350.0,111340.0,0.181974]
[1760568308782,0.67355388,111350.0,111340.0,0.181974]
[1760568309869,0.67355388,111350.0,111340.0,0.00234404]
[1760568310274,0.56087388,111350.0,111340.0,0.181974]
[1760568310492,0.67355388,111350.0,111340.0,0.181974]
[1760568310684,0.56087388,111350.0,111340.0,0.181974]
[1760568311058,0.67355388,111350.0,111340.0,0.181974]
[1760568311469,0.56087388,111350.0,111340.0,0.181974]
[1760568311679,0.67355388,111350.0,111340.0,0.181974]
[1760568312052,0.67355388,111350.0,111340.0,0.00234404]
[1760568312562,2.92533103,111350.0,111340.0,0.00234404]
[1760568312798,3.0574283,111350.0,111340.0,0.00234404]
[1760568313012,2.73014302,111350.0,111340.0,0.00234404]
[1760568313209,2.61746302,111350.0,111340.0,0.00234404]
[1760568313448,2.73014302,111350.0,111340.0,0.00234404]
[1760568313856,2.61746302,111350.0,111340.0,0.00234404]
[1760568314055,2.71172575,111350.0,111340.0,0.00234404]
[1760568314198,3.09536331,111350.0,111340.0,0.00234404]
[1760568314683,2.98268331,111350.0,111340.0,0.00234404]
[1760568314864,3.09536331,111350.0,111340.0,0.00234404]
[1760568316805,3.11476452,111350.0,111340.0,0.00234404]
[1760568319524,3.00208452,111350.0,111340.0,0.00234404]
[1760568319988,3.11476452,111350.0,111340.0,0.00234404]
[1760568323595,3.00208452,111350.0,111340.0,0.00234404]
[1760568323801,3.11476452,111350.0,111340.0,0.00234404]
[1760568324229,3.00208452,111350.0,111340.0,0.00234404]
[1760568324630,3.11476452,111350.0,111340.0,0.00234404]
[1760568325925,3.00208452,111350.0,111340.0,0.00234404]
[1760568326580,3.11476452,111350.0,111340.0,0.00234404]
[1760568326799,3.00208452,111350.0,111340.0,0.00234404]
[1760568327321,3.11476452,111350.0,111340.0,0.00234404]
[1760568327725,3.00208452,111350.0,111340.0,0.00234404]
[1760568327924,3.11476452,111350.0,111340.0,0.00234404]
[1760568328380,3.20445464,111350.0,111340.0,0.00234404]
[1760568328594,3.4754122,111350.0,111340.0,0.00234404]
[1760568328802,3.10016689,111350.0,111340.0,0.00234404]
[1760568329011,3.19601573,111350.0,111340.0,0.00234404]
[1760568329282,3.19601596,111350.0,111340.0,0.00234404]
[1760568329474,3.21284799,111350.0,111340.0,0.00234404]
[1760568329707,3.08333606,111350.0,111340.0,0.00234404]
[1760568329909,3.57965362,111350.0,111340.0,0.00234404]
[1760568330067,3.09917282,111350.0,111340.0,0.00234404]
[1760568330285,3.12442116,111350.0,111340.0,0.00234404]
[1760568330518,3.62073872,111350.0,111340.0,0.00234404]
[1760568330745,3.64322928,111350.0,111340.0,0.00234404]
[1760568330937,3.56673156,111350.0,111340.0,0.00234404]
[1760568331247,3.71162814,111350.0,111340.0,0.00234404]
[1760568331452,3.32878474,111350.0,111340.0,0.00234404]
[1760568332080,3.30352729,111350.0,111340.0,0.00234404]
[1760568332292,3.32874244,111350.0,111340.0,0.00234404]
[1760568332491,3.32974244,111350.0,111340.0,0.00234404]
[1760568334234,3.21705712,111350.0,111340.0,0.00234404]
[1760568334434,3.32973712,111350.0,111340.0,0.00234404]
[1760568335966,3.30552197,111350.0,111340.0,0.00234404]
[1760568336664,3.44214197,111350.0,111340.0,0.00234404]
[1760568336904,3.55482197,111350.0,111340.0,0.00234404]
[1760568337495,3.32707007,111350.0,111340.0,0.00234404]
[1760568337770,3.5066839,111350.0,111340.0,0.00234404]
[1760568339108,3.48419334,111350.0,111340.0,0.00234404]
[1760568339952,3.4078181,111350.0,111340.0,0.00234404]
[1760568340165,3.5204981,111350.0,111340.0,0.00234404]
[1760568340560,3.4078181,111350.0,111340.0,0.00234404]
[1760568340768,3.5204981,111350.0,111340.0,0.00234404]
[1760568341365,3.4078181,111350.0,111340.0,0.00234404]
[1760568341566,3.5204981,111350.0,111340.0,0.00234404]
[1760568345041,3.54338951,111350.0,111340.0,0.00234404]
[1760568345236,3.55141377,111350.0,111340.0,0.00234404]
[1760568347537,3.56752207,111350.0,111340.0,0.00234404]
[1760568350380,3.45484207,111350.0,111340.0,0.00234404]
[1760568350589,3.56752207,111350.0,111340.0,0.00234404]
[1760568351022,3.45484207,111350.0,111340.0,0.00234404]
[1760568351223,3.56752207,111350.0,111340.0,0.00234404]
[1760568351674,3.45484207,111350.0,111340.0,0.00234404]
[1760568351876,3.56752207,111350.0,111340.0,1e-08]
[1760568352064,2.18913122,111340.0,111330.0,0.00014982]
[1760568352322,3.14798276,111340.0,111330.0,0.00014982]
[1760568352529,3.12378879,111340.0,111330.0,0.00014982]
[1760568352885,3.24006914,111340.0,111330.0,0.00014982]
[1760568353085,3.1273603,111340.0,111330.0,0.00014982]
[1760568353288,3.2410403,111340.0,111330.0,0.00014982]
[1760568353514,3.10687332,111340.0,111330.0,0.00014982]
[1760568353953,3.21955332,111340.0,111330.0,0.00014982]
[1760568356021,3.10687332,111340.0,111330.0,0.00014982]
[1760568356407,2.7108753,111340.0,111330.0,0.00014982]
[1760568356798,2.49898672,111340.0,111330.0,0.00014982]
[1760568357015,2.76707778,111340.0,111330.0,0.00014982]
[1760568357247,2.65439778,111340.0,111330.0,0.00014982]
[1760568357713,3.03843242,111340.0,111330.0,0.00073599]
[1760568357917,3.06265132,111340.0,111330.0,0.00073599]
[1760568358138,3.17533132,111340.0,111330.0,0.00073599]
[1760568358786,3.06265132,111340.0,111330.0,0.00073599]
[1760568359032,3.17533132,111340.0,111330.0,0.00073599]
[1760568359252,3.234405,111340.0,111330.0,0.00073599]
[1760568360004,3.2115136,111340.0,111330.0,0.00073599]
[1760568360442,3.24377222,111340.0,111330.0,0.00073599]
[1760568360685,3.13109222,111340.0,111330.0,0.00073599]
[1760568360901,3.2115136,111340.0,111330.0,0.00073599]
[1760568362480,3.0988336,111340.0,111330.0,0.00073599]
[1760568362695,3.2115136,111340.0,111330.0,0.00073599]
[1760568363135,3.13109222,111340.0,111330.0,0.00073599]
[1760568363356,3.10687332,111340.0,111330.0,0.00073599]
[1760568363598,3.09887489,111340.0,111330.0,0.00073599]
[1760568363808,2.67865797,111340.0,111330.0,0.00073599]
[1760568364212,2.79133797,111340.0,111330.0,0.00073599]
[1760568364475,3.06269261,111340.0,111330.0,0.00073599]
[1760568364696,3.20763123,111340.0,111330.0,0.00073599]
[1760568364913,3.20844826,111340.0,111330.0,0.00073599]
[1760568365347,3.17618964,111340.0,111330.0,0.00073599]
[1760568365783,3.06350964,111340.0,111330.0,0.00073599]
[1760568366283,3.17618964,111340.0,111330.0,0.00073599]
[1760568366959,3.11983295,111340.0,111330.0,0.00073599]
[1760568367176,3.23251295,111340.0,111330.0,0.00073599]
[1760568367387,3.23169592,111340.0,111330.0,0.00073599]
[1760568367855,3.2678782,111340.0,111330.0,0.00073599]
[1760568368070,0.17966223,111320.0,111310.0,0.0004]
[1760568368286,2.42638822,111320.0,111310.0,0.00044986]
[1760568368496,2.33310943,111320.0,111310.0,0.00044986]
[1760568368701,2.33310943,111320.0,111310.0,0.00162246]
[1760568368702,2.44578943,111320.0,111310.0,0.00162246]
[1760568368910,2.44938999,111320.0,111310.0,0.00162246]
[1760568369328,2.33670999,111320.0,111310.0,0.00162246]
[1760568369538,2.44938999,111320.0,111310.0,0.00162246]
[1760568370848,2.33670999,111320.0,111310.0,0.00162246]
[1760568371081,2.44938999,111320.0,111310.0,0.00162246]
[1760568371958,2.33670999,111320.0,111310.0,0.00162246]
[1760568372172,2.47106958,111320.0,111310.0,0.00162246]
[1760568372417,3.19510422,111320.0,111310.0,0.00162246]
[1760568373073,2.81106958,111320.0,111310.0,0.00162246]
[1760568373306,3.08242422,111320.0,111310.0,0.00162246]
[1760568373566,3.21769421,111320.0,111310.0,0.00162246]
[1760568373810,3.26701909,111320.0,111310.0,0.00162246]
[1760568374036,0.37618228,111310.0,111280.0,1e-08]
[1760568374259,3.02448434,111290.0,111280.0,1e-08]
[1760568374473,3.02448434,111290.0,111260.0,0.1004]
[1760568374474,2.89864424,111270.0,111260.0,0.1004]
[1760568374680,3.16143657,111270.0,111260.0,0.10090027]
[1760568374885,3.19613108,111270.0,111260.0,0.10090027]
[1760568375295,3.65177575,111270.0,111260.0,0.10090027]
[1760568375506,3.71482454,111270.0,111260.0,1e-08]
[1760568375704,3.69650908,111270.0,111260.0,1e-08]
[1760568376823,3.64907386,111270.0,111260.0,1e-08]
[1760568377247,3.53635386,111270.0,111260.0,1e-08]
[1760568377470,3.26603922,111270.0,111260.0,1e-08]
[1760568377705,2.38648872,111270.0,111260.0,1e-08]
[1760568377914,2.73823322,111270.0,111260.0,1e-08]
[1760568378121,2.69365382,111270.0,111260.0,1e-08]
[1760568378327,3.16631828,111270.0,111260.0,1e-08]
[1760568381255,3.05355828,111270.0,111260.0,1e-08]
[1760568381448,3.16631828,111270.0,111260.0,1e-08]
[1760568381774,3.16631828,111270.0,111260.0,0.0029331]
[1760568382192,2.66952364,111270.0,111260.0,0.0029331]
[1760568382411,2.78228364,111270.0,111260.0,0.0029331]
[1760568382871,2.66952364,111270.0,111260.0,0.0029331]
[1760568383081,2.75526432,111270.0,111260.0,0.0029331]
[1760568383290,2.75426432,111270.0,111260.0,0.0029331]
[1760568383914,2.75526432,111270.0,111260.0,0.0029331]
[1760568384752,2.64250432,111270.0,111260.0,0.0029331]
[1760568384960,2.75526432,111270.0,111260.0,0.0029331]
[1760568387687,2.75526432,111270.0,111260.0,0.18269222]
[1760568387688,2.64250432,111270.0,111260.0,0.18269222]
[1760568387909,2.14937835,111270.0,111260.0,0.18269222]
[1760568388122,2.26213835,111270.0,111260.0,0.18269222]
[1760568388336,2.14937835,111270.0,111260.0,0.18269222]
[1760568388773,2.26013835,111270.0,111260.0,0.18269222]
[1760568389198,2.26013835,111270.0,111260.0,0.0029331]
[1760568389593,2.64417299,111270.0,111260.0,0.0029331]
[1760568390673,2.6273696,111270.0,111260.0,0.0029331]
[1760568391352,2.64664227,111270.0,111260.0,0.0029331]
[1760568391606,2.64688979,111270.0,111260.0,0.0029331]
[1760568391830,2.53412979,111270.0,111260.0,0.0029331]
[1760568392052,2.66361666,111270.0,111260.0,0.0029331]
[1760568392493,2.55085666,111270.0,111260.0,0.0029331]
[1760568392635,2.64688979,111270.0,111260.0,0.0029331]
[1760568394034,2.55086341,111270.0,111260.0,0.0029331]
[1760568394247,2.53412979,111270.0,111260.0,0.0029331]
[1760568394428,2.64690683,111270.0,111260.0,0.0029331]
[1760568395081,2.66364432,111270.0,111260.0,0.0029331]
[1760568395819,2.6636507,111270.0,111260.0,0.0029331]
[1760568397167,2.66365814,111270.0,111260.0,0.0029331]
[1760568399412,2.68777028,111270.0,111260.0,0.0029331]
[1760568400623,2.39526732,111270.0,111260.0,0.18269222]
[1760568400829,2.01101937,111270.0,111260.0,0.18269222]
[1760568401035,0.03607523,111270.0,111260.0,0.56697438]
[1760568401235,0.01678552,111270.0,111260.0,0.56697438]
[1760568401442,2.28418729,111280.0,111270.0,0.17974296]
[1760568401644,2.303477,111280.0,111270.0,0.17974296]
[1760568402053,0.17974296,111270.0,111260.0,0.17975109]
[1760568402278,0.19653686,111270.0,111260.0,0.17975109]
[1760568402482,0.58081902,111270.0,111260.0,0.17975109]
[1760568402600,0.60010873,111270.0,111260.0,0.17975109]
[1760568407566,2.93522289,111270.0,111260.0,1e-08]
[1760568407731,2.69618425,111270.0,111260.0,1e-08]
[1760568407939,3.08046641,111270.0,111260.0,0.0029331]
[1760568408184,2.58346425,111270.0,111260.0,0.0029331]
[1760568408382,2.61575439,111270.0,111260.0,0.0029331]
[1760568408793,2.72847439,111270.0,111260.0,0.0029331]
[1760568409006,2.61575439,111270.0,111260.0,0.0029331]
[1760568409214,2.72847439,111270.0,111260.0,0.0029331]
[1760568409438,2.61575439,111270.0,111260.0,0.0029331]
[1760568409907,2.72847439,111270.0,111260.0,0.0029331]
[1760568410309,2.61575439,111270.0,111260.0,0.0029331]
[1760568410472,2.72847439,111270.0,111260.0,0.0029331]
[1760568410721,2.66833576,111270.0,111260.0,0.0029331]
[1760568411330,2.55561576,111270.0,111260.0,0.0029331]
[1760568411588,2.66833576,111270.0,111260.0,0.0029331]
[1760568411719,3.14230804,111270.0,111260.0,0.0029331]
[1760568411927,3.02958804,111270.0,111260.0,0.0029331]
[1760568412128,3.15048604,111270.0,111260.0,0.0029331]
[1760568412572,3.03776604,111270.0,111260.0,0.0029331]
[1760568412725,3.15048604,111270.0,111260.0,0.0029331]
[1760568413212,3.03776604,111270.0,111260.0,0.0029331]
[1760568413634,3.18666832,111270.0,111260.0,0.0029331]
[1760568413958,3.6204257,111270.0,111260.0,0.0029331]
[1760568414166,3.58813556,111270.0,111260.0,0.0029331]
[1760568414566,3.58913556,111270.0,111260.0,0.0029331]
[1760568414991,3.47537556,111270.0,111260.0,0.0029331]
[1760568415172,3.58813556,111270.0,111260.0,0.0029331]
[1760568415586,3.47537556,111270.0,111260.0,0.0029331]
[1760568415837,3.58813556,111270.0,111260.0,0.0029331]
[1760568416414,3.53970034,111270.0,111260.0,0.0029331]
[1760568416825,3.42794034,111270.0,111260.0,0.0029331]
[1760568417244,3.54070034,111270.0,111260.0,0.0029331]
[1760568417444,3.47638415,111270.0,111260.0,0.0029331]
[1760568418417,3.58914415,111270.0,111260.0,0.0029331]
[1760568418619,3.47638415,111270.0,111260.0,0.0029331]
[1760568418935,3.58914415,111270.0,111260.0,0.0029331]
[1760568420693,0.51975912,111260.0,111250.0,0.0004]
[1760568420881,3.54271636,111260.0,111250.0,0.00048973]
[1760568421246,3.42995636,111260.0,111250.0,0.00107653]
[1760568421443,3.54271636,111260.0,111250.0,0.00107653]
[1760568421643,3.42995636,111260.0,111250.0,0.00107653]
[1760568421898,3.54371636,111260.0,111250.0,0.00107653]
[1760568422124,3.43095636,111260.0,111250.0,0.00107653]
[1760568422328,3.54371636,111260.0,111250.0,0.00107653]
[1760568422695,3.57987826,111260.0,111250.0,0.00107653]
[1760568422900,3.58087826,111260.0,111250.0,0.00107653]
[1760568423102,3.58087826,111260.0,111250.0,1e-08]
[1760568423103,4.80578812,111260.0,111250.0,1e-08]
[1760568423538,3.65294164,111260.0,111250.0,1e-08]
[1760568424397,3.58824341,111260.0,111250.0,1e-08]
[1760568424805,3.47544341,111260.0,111250.0,1e-08]
[1760568425010,3.58824341,111260.0,111250.0,1e-08]
[1760568425429,3.97252557,111260.0,111250.0,1e-08]
[1760568426274,3.63659674,111260.0,111250.0,1e-08]
[1760568426479,3.52379674,111260.0,111250.0,1e-08]
[1760568426685,3.50423661,111260.0,111250.0,1e-08]
[1760568426897,3.11995445,111260.0,111250.0,1e-08]
[1760568427148,3.10383461,111260.0,111250.0,1e-08]
[1760568427351,3.62508956,111260.0,111250.0,1e-08]
[1760568427791,3.51228956,111260.0,111250.0,1e-08]
[1760568428016,3.62508956,111260.0,111250.0,1e-08]
[1760568428231,3.48811677,111260.0,111250.0,1e-08]
[1760568428716,3.92075226,111260.0,111250.0,1e-08]
[1760568428925,4.05644976,111260.0,111250.0,1e-08]
[1760568429134,3.91141627,111260.0,111250.0,1e-08]
[1760568429344,2.16678956,111250.0,111240.0,1e-08]
[1760568429569,2.16678956,111250.0,111240.0,4.983e-05]
[1760568429570,3.63793188,111250.0,111240.0,4.983e-05]
[1760568429773,3.52513188,111250.0,111240.0,4.983e-05]
[1760568430180,3.63793188,111250.0,111240.0,4.983e-05]
[1760568430421,3.63893188,111250.0,111240.0,4.983e-05]
[1760568430625,3.56035576,111250.0,111240.0,4.983e-05]
[1760568430832,3.67315576,111250.0,111240.0,4.983e-05]
[1760568431275,3.64093188,111250.0,111240.0,4.983e-05]
[1760568431487,3.56035458,111250.0,111240.0,4.983e-05]
[1760568431692,3.67315458,111250.0,111240.0,4.983e-05]
[1760568432238,3.56035458,111250.0,111240.0,4.983e-05]
[1760568432467,3.67315458,111250.0,111240.0,4.983e-05]
[1760568432670,3.52813188,111250.0,111240.0,4.983e-05]
[1760568433078,3.64093188,111250.0,111240.0,4.983e-05]
[1760568433675,3.64093188,111250.0,111210.0,0.0504]
[1760568433676,3.28350225,111220.0,111210.0,0.0504]
[1760568433887,3.43352674,111220.0,111210.0,0.05048991]
[1760568434099,3.45642424,111220.0,111210.0,0.05048991]
[1760568434312,3.45642424,111220.0,111200.0,0.0004]
[1760568434313,2.16685422,111210.0,111200.0,0.0004]
[1760568434531,3.52485306,111210.0,111200.0,0.00048991]
[1760568434747,0.51985611,111200.0,111180.0,0.0004]
[1760568434980,3.43356098,111200.0,111190.0,0.00055004]
[1760568435195,3.56937848,111200.0,111190.0,0.00055004]
[1760568435412,3.49264076,111200.0,111190.0,0.0040729]
[1760568435623,3.60556076,111200.0,111190.0,0.0040729]
[1760568435829,3.46974326,111200.0,111190.0,0.0040729]
[1760568436044,3.58266326,111200.0,111190.0,0.0040729]
[1760568436319,3.47174326,111200.0,111190.0,0.0040729]
[1760568436535,3.58466326,111200.0,111190.0,0.0040729]
[1760568436744,4.76040724,111200.0,111190.0,0.0040729]
[1760568436946,3.60756076,111200.0,111190.0,0.0040729]
[1760568437150,3.58466326,111200.0,111190.0,0.0040729]
[1760568437358,3.61689323,111200.0,111190.0,0.0040729]
[1760568437562,3.33900101,111200.0,111190.0,0.0040729]
[1760568437770,3.22608101,111200.0,111190.0,0.0040729]
[1760568437978,3.30681104,111200.0,111190.0,0.0040729]
[1760568438384,3.19385104,111200.0,111190.0,0.0040729]
[1760568438602,2.75637391,111200.0,111190.0,0.0040729]
[1760568438825,2.86933391,111200.0,111190.0,0.0040729]
[1760568439036,3.30681104,111200.0,111190.0,0.0040729]
[1760568439446,3.33904101,111200.0,111190.0,0.0040729]
[1760568439656,3.31486664,111200.0,111190.0,0.0040729]
[1760568439866,2.56818142,111190.0,111180.0,0.0004]
[1760568440076,2.7503575,111190.0,111180.0,0.0004]
[1760568440294,2.72622109,111190.0,111180.0,0.0004]
[1760568440494,2.83918109,111190.0,111180.0,0.0004]
[1760568440670,2.92370541,111190.0,111180.0,0.0004]
[1760568440873,2.91437294,111190.0,111180.0,0.0004]
[1760568441099,2.91441294,111190.0,111180.0,0.0004]
[1760568441303,2.91541294,111190.0,111180.0,0.0004]
[1760568441508,2.91641294,111190.0,111180.0,0.0004]
[1760568441916,2.91541294,111190.0,111180.0,0.0004]
[1760568442120,2.91441294,111190.0,111180.0,0.0004]
[1760568442326,2.91641294,111190.0,111180.0,0.0004]
[1760568442548,2.80341294,111190.0,111180.0,0.0004]
[1760568442757,2.43059097,111190.0,111180.0,0.0004]
[1760568442959,2.8680681,111190.0,111180.0,0.0004]
[1760568444336,2.16690274,111180.0,111170.0,0.05]
[1760568444536,2.77840425,111180.0,111170.0,0.05]
[1760568445038,2.89140425,111180.0,111170.0,0.05]
[1760568445465,2.89240425,111180.0,111170.0,0.05]
[1760568445844,2.89340425,111180.0,111170.0,0.05117482]
[1760568450622,2.74422197,111180.0,111170.0,0.05117482]
[1760568450827,2.88935345,111180.0,111170.0,0.05117482]
[1760568451044,2.43635345,111180.0,111170.0,0.05117482]
[1760568451256,2.38010045,111180.0,111170.0,0.23107947]
[1760568451519,2.01304474,111180.0,111170.0,0.23107947]
[1760568451729,2.71931437,111180.0,111170.0,0.05117482]
[1760568452144,2.71931437,111180.0,111170.0,0.23107947]
[1760568452353,2.60631437,111180.0,111170.0,0.23107947]
[1760568452565,2.71931437,111180.0,111170.0,0.23107947]
[1760568452980,2.60531437,111180.0,111170.0,0.23107947]
[1760568453196,2.71731437,111180.0,111170.0,0.23107947]
[1760568453408,2.16683724,111180.0,111170.0,0.23107947]
[1760568453610,0.03611678,111180.0,111170.0,0.23107947]
[1760568453830,0.64964645,111180.0,111170.0,0.23107947]
[1760568454049,0.32900524,111180.0,111170.0,0.05117482]
[1760568454269,0.19664645,111180.0,111170.0,0.05117482]
[1760568454477,0.64964645,111180.0,111170.0,0.23107947]
[1760568454679,0.66900524,111180.0,111170.0,0.05117482]
[1760568454908,0.66900524,111180.0,111170.0,0.23107947]
[1760568455355,2.95919758,111180.0,111170.0,0.23107947]
[1760568455573,2.95923758,111180.0,111170.0,0.05117482]
[1760568455923,2.95923758,111180.0,111170.0,0.23107947]
[1760568456127,2.28721521,111180.0,111170.0,0.23107947]
[1760568456907,2.30397244,111180.0,111170.0,0.23107947]
[1760568457114,2.28721521,111180.0,111170.0,0.23107947]
[1760568457313,2.28717521,111180.0,111170.0,0.23107947]
[1760568457722,2.30393977,111180.0,111170.0,0.23107947]
[1760568458326,2.33607125,111180.0,111170.0,0.23107947]
[1760568459175,2.31197529,111180.0,111170.0,0.23107947]
[1760568459585,2.33615567,111180.0,111170.0,0.23107947]
[1760568460134,2.31197529,111180.0,111170.0,0.23107947]
[1760568460880,2.13208683,111180.0,111170.0,0.23107947]
[1760568461078,2.01908683,111180.0,111170.0,0.23107947]
[1760568461306,0.52125483,111180.0,111170.0,0.23107947]
[1760568461514,2.33617566,111180.0,111170.0,0.23107947]
[1760568462178,0.52125483,111180.0,111170.0,0.23107947]
[1760568462601,0.40825483,111180.0,111170.0,0.23107947]
[1760568462811,0.58814329,111180.0,111170.0,0.23107947]
[1760568463854,2.87099766,111180.0,111170.0,0.23107947]
[1760568464267,2.91921514,111180.0,111170.0,0.23107947]
[1760568464471,2.87099766,111180.0,111170.0,0.23107947]
[1760568464860,2.19897529,111180.0,111170.0,0.23107947]
[1760568465532,2.22320567,111180.0,111170.0,0.23107947]
[1760568468220,3.00890526,111180.0,111170.0,0.05117482]
[1760568468607,2.21506129,111180.0,111170.0,0.23107947]
[1760568468808,0.58831776,111180.0,111170.0,0.23107947]
[1760568469031,0.72558639,111180.0,111170.0,0.05117482]
[1760568469246,0.61254639,111180.0,111170.0,0.05117482]
[1760568469466,3.00844076,111180.0,111170.0,0.05117482]
[1760568469665,3.00844076,111180.0,111170.0,0.23107947]
[1760568469834,2.33641839,111180.0,111170.0,0.23107947]